Cogmind - Beta 14 @@@ ROGUE MODE // 2024.12.08 @ 19:13:41 Player: Suikeina Result: Destroyed by Y-45 Defender with Beam Rifle Performance ------------- Evolutions (0) 0 Regions Visited (4) 800 Robots Destroyed (28) 140 Value Destroyed (597) 597 Prototype IDs (5) 100 Alien Tech Used (0) 0 Bonus (178) 178 TOTAL SCORE: 1815 Bonus ------- Aligned with FarCom 300 Friendly Fire -122 Cogmind --------- Core Integrity 0/250 Matter 200/300 Energy 89/100 System Corruption 2% Temperature Cool (9) Movement Core (250) Ox4 Location -9/Mines Parts ------- > --- POWER (1) -------- (None) > --- PROPULSION (2) --- (None) > --- UTILITY (2) ------ Medium Storage Unit Core Shielding > --- WEAPON (2) ------- Rocket Launcher > --- INVENTORY (10) --- Superbattery (1500) Experimental Sensor Array ECM Suite Cloak of Protection Light Armor Plating Splice Drone Bay (6/6) PSU Rigger Peak State ------------ > --- POWER ------------ Light Ion Engine > --- PROPULSION ------- Wheel Wheel > --- UTILITY ---------- Medium Storage Unit Superbattery > --- WEAPON ----------- Light Assault Rifle Light Assault Rifle > --- INVENTORY -------- Wheel Experimental Sensor Array ECM Suite Cloak of Protection Core Shielding Light Armor Plating Splice Drone Bay Grenade Launcher Grenade Launcher [Rating: 19] Favorites ----------- Power Light Ion Engine Engine Light Ion Engine Propulsion Wheel Leg Aluminum Leg Wheel Wheel Utility Medium Storage Unit Device Structural Scanner Storage Medium Storage Unit Processor Targeting Computer Protection Light Armor Plating Weapon Light Assault Rifle Energy Gun Small Laser Ballistic Gun Light Assault Rifle Launcher Grenade Launcher Build | -11 -10 -10 -10 -9 ------- Run | Yrd Mat Min Exi Min Slots Evolved . | . . . . . Power . | . . . . . Propulsion . | . . . . . Utility . | . . . . . Weapon . | . . . . . Parts Attached 53 | 6 18 12 6 11 Power 5 | 1 3 . . 1 Engine 5 | 1 3 . . 1 Core . | . . . . . Reactor . | . . . . . Propulsion 18 | 2 7 8 . 1 Treads . | . . . . . Leg 4 | 2 2 . . . Wheel 14 | . 5 8 . 1 Hover . | . . . . . Flight . | . . . . . Utility 13 | 1 4 . 6 2 Device 5 | . 1 . 4 . Storage 3 | 1 1 . 1 . Processor 1 | . 1 . . . Hackware . | . . . . . Protection 4 | . 1 . 1 2 Artifact . | . . . . . Weapon 17 | 2 4 4 . 7 Energy Gun 7 | 1 3 1 . 2 Energy Cannon . | . . . . . Ballistic Gun 5 | 1 1 2 . 1 Ballistic Cannon . | . . . . . Launcher 5 | . . 1 . 4 Special Weapon . | . . . . . Impact Weapon . | . . . . . Slashing Weapon . | . . . . . Piercing Weapon . | . . . . . Special Melee Weapon . | . . . . . Unidentified Prototypes 5 | . . . 5 . Parts Lost 9 | . 2 . . 7 Power 2 | . 1 . . 1 Propulsion 4 | . 1 . . 3 Utility 1 | . . . . 1 Weapon 2 | . . . . 2 Highest Loss Streak 4 | . 2 . . 4 To Critical Strikes . | . . . . . Average Slot Usage (%) 95 | . 92 100 100 94 Engine 13 | . 13 14 14 12 Leg 3 | . 8 . . . Wheel 23 | . 18 28 28 25 Device 1 | . 3 . . . Storage 14 | . 14 14 14 14 Processor 1 | . 4 . . . Protection 8 | . 1 14 13 14 Energy Gun 9 | . 17 5 . 5 Ballistic Gun 16 | . 9 15 28 20 Launcher 1 | . . 6 . . Peak Build Rating 19 | 6 8 9 19 12 Average Rating 8 | 3 6 8 10 11 On Entrance 6 | . 6 8 9 11 Naked Turns . | . . . . . Heaviest Build 20 | 11 18 20 18 20 Greatest Support 26 | 20 26 26 20 20 Greatest Overweight (x) 4 | . 4 1 . 4 Average Overweight (x) . | . . . . . Largest Inventory Capacity 10 | 8 10 10 10 10 Average Capacity 9 | 7 9 10 10 10 Most Carried 10 | 5 10 10 10 10 Average Carried 9 | 2 8 9 9 9 Final Capacity 10 | 8 10 10 10 10 Final Carried 10 | 4 10 10 10 7 Class Distribution -------------------- 84% | Mutant 15% | Scavenger-Mutant Dominant Class ---------------- Mutant | -10/Materials Mutant | -10/Mines Mutant | -10/Exiles Scavenger-Mutant | -9/Mines Resources | -11 -10 -10 -10 -9 ----------- Run | Yrd Mat Min Exi Min Matter Collected 948 | 240 275 216 . 217 Remotely . | . . . . . Salvage Created 844 | . 485 111 . 248 Parts 66 | . 41 3 . 22 Haulers Intercepted 1 | . 1 . . . Recyclers Shooed 2 | . . . . 2 Parts Field Recycled . | . . . . . Retrieved Matter . | . . . . . Parts Self-Destructed . | . . . . . Prevented . | . . . . . Kills | -11 -10 -10 -10 -9 ------- Run | Yrd Mat Min Exi Min Combat Hostiles Destroyed 25 | . 12 6 . 7 Guns 19 | . 12 5 . 2 AOE 6 | . . 1 . 5 Classes Destroyed 9 | . 6 2 . 1 Worker 3 | . 3 . . . Builder 1 | . 1 . . . Hauler 1 | . 1 . . . Recycler 2 | . . 1 . 1 Watcher 1 | . 1 . . . Swarmer 6 | . 6 . . . Grunt 12 | . 6 . . 6 Sentry 1 | . . . . 1 Assembled 6 | . . 6 . . Thug 1 | . . 1 . . Best Kill Streak 6 | . 6 2 . 3 Combat Bots Only 5 | . 5 2 . 3 Max Kills in Single Turn 2 | . 1 1 . 2 Gunslinging . | . . . . . Exploded 2 | . . 1 . 2 Melee . | . . . . . Uniques/NPCs Destroyed . | . . . . . Combat | -11 -10 -10 -10 -9 -------- Run | Yrd Mat Min Exi Min Hostile Shots Fired 155 | . 66 19 . 70 Missed 38 | . 15 3 . 20 Damage Taken 1470 | . 499 227 . 744 Core 261 | . 67 34 . 160 Absorbed by Shields . | . . . . . Redirected to Shielding 32 | . . . . 32 Core Remaining (%) 100 | 100 . . . . Volleys Fired 120 | . 63 30 . 27 Largest 2 | . 2 2 . 2 Hottest 85 | . 80 60 . 85 Shots Fired 222 | . 124 54 . 44 Gun 209 | . 124 50 . 35 Cannon . | . . . . . Launcher 13 | . . 4 . 9 Special . | . . . . . Kinetic 96 | . 38 31 . 27 Thermal 113 | . 86 19 . 8 Explosive 13 | . . 4 . 9 Electromagnetic . | . . . . . Robot Hit Streak 13 | . 8 6 . 13 Robot Miss Streak 6 | . 6 4 . 1 Penetration Max . | . . . . . Secondary Targets 2 | . 2 . . . Max Gunslinging Chain 1 | . 1 . . . Shots Hit Robots 128 | . 67 25 . 36 Core Hits 65 | . 28 19 . 18 Critical Kills . | . . . . . Critical Parts Destroyed . | . . . . . Critical Strikes 1 | . . . . 1 Burn 1 | . . . . 1 Melee Attacks . | . . . . . Impact . | . . . . . Slashing . | . . . . . Piercing . | . . . . . Sneak Attacks . | . . . . . Combat Hostiles . | . . . . . Follow-up Attacks . | . . . . . Damage Inflicted 1892 | . 734 371 . 787 Guns 1271 | . 734 236 . 301 Cannons . | . . . . . Explosions 621 | . . 135 . 486 Melee . | . . . . . Ramming . | . . . . . Kinetic 521 | . 183 147 . 191 Thermal 750 | . 551 89 . 110 Explosive 621 | . . 135 . 486 Electromagnetic . | . . . . . Impact . | . . . . . Slashing . | . . . . . Piercing . | . . . . . Highest Corruption 2 | . 2 2 2 2 Average Corruption 2 | . 2 2 2 2 Corruption Purged . | . . . . . Corruption Blocked . | . . . . . Effects 29 | . 5 7 5 12 Message Errors 8 | . 2 2 2 2 Matter Fused 9 | . 2 1 1 5 Heat Flow Errors 5 | . . 1 2 2 Energy Discharges 3 | . 1 1 . 1 Data Loss (minor) 1 | . . . . 1 Data Loss (major) 1 | . . 1 . . Misfires 1 | . . 1 . . Weapon Failures 1 | . . . . 1 Overload Shots . | . . . . . Overflow Damage 30 | . . . . 30 Projectiles . | . . . . . Explosions 30 | . . . . 30 Melee . | . . . . . Knockbacks . | . . . . . Impact . | . . . . . Kinetic . | . . . . . Secondary . | . . . . . Self-Inflicted Damage 13 | . . . . 13 Shots 1 | . . . . 1 Rammed . | . . . . . Targets Rammed . | . . . . . Kicked . | . . . . . Crushed . | . . . . . Highest Temperature 362 | . 248 225 258 362 Average Temperature 77 | . 55 48 124 137 Received Heat Transfer 546 | . 162 69 . 315 Effects 4 | . . . . 4 Shutdowns 1 | . . . . 1 Energy Bleed 1 | . . . . 1 Interference 2 | . . . . 2 Siege Activations . | . . . . . Robots Corrupted . | . . . . . Combat Hostiles . | . . . . . Parts Fried . | . . . . . Impact Corruptions . | . . . . . Robots Melted . | . . . . . Combat Hostiles . | . . . . . Parts Melted 1 | . 1 . . . Heat Transferred 1783 | . 1250 200 . 333 Parts Sabotaged . | . . . . . Parts Stolen . | . . . . . Parts Stripped . | . . . . . Power Chain Reactions . | . . . . . Alert | -11 -10 -10 -10 -9 ------- Run | Yrd Mat Min Exi Min Peak Influence 230 | . 230 75 . 110 Initial 31 | . . 31 . . Average 99 | . 138 50 . 82 Maximum Alert Level 1 | . 1 . . . Low Security (%) 89 | 100 78 100 . 100 Level 1 10 | . 21 . . . Level 2 . | . . . . . Level 3 . | . . . . . Level 4 . | . . . . . Level 5 . | . . . . . High Security . | . . . . . Max Security . | . . . . . Squads Dispatched 2 | . 2 . . . Investigation 1 | . 1 . . . Extermination . | . . . . . Reinforcement 1 | . 1 . . . Assault . | . . . . . Garrison . | . . . . . Intercept . | . . . . . Searches Triggered . | . . . . . Construction Impeded . | . . . . . Haulers Reinforced . | . . . . . Active Scanning Responses . | . . . . . Cargo Convoy Interrupts . | . . . . . Stealth | -11 -10 -10 -10 -9 --------- Run | Yrd Mat Min Exi Min Distress Signals 1 | . 1 . . . Communications Jammed . | . . . . . Distress Signals . | . . . . . Times Spotted 39 | . 25 6 . 8 Peak Tracking Total 6 | . 6 2 . 4 Tactical Retreats 4 | . 4 . . . Traps | -11 -10 -10 -10 -9 ------- Run | Yrd Mat Min Exi Min Traps Triggered 5 | . 5 . . . Indirectly . | . . . . . Trap Hack Attempts . | . . . . . Triggered . | . . . . . Disarmed . | . . . . . Reprogrammed . | . . . . . Reused . | . . . . . Traps Extracted . | . . . . . Installed . | . . . . . Triggered . | . . . . . Machines | -11 -10 -10 -10 -9 ---------- Run | Yrd Mat Min Exi Min Machines Disabled 2 | . . . . 2 Max in Single Turn 2 | . . . . 2 Machines Repaired . | . . . . . Machines Dismantled . | . . . . . Machines Sabotaged . | . . . . . Overloaded Fab Kills . | . . . . . Hacking | -11 -10 -10 -10 -9 --------- Run | Yrd Mat Min Exi Min Machines Accessed 4 | . 3 1 . . Terminals 2 | . 2 . . . Fabricators . | . . . . . Repair Stations . | . . . . . Recycling Units 1 | . 1 . . . Scanalyzers . | . . . . . Garrison Access . | . . . . . Total Hacks 6 | . 5 1 . . Successful 3 | . 2 1 . . Failed 3 | . 3 . . . Catastrophic . | . . . . . Database Lockouts . | . . . . . Manual 2 | . 1 . 1 . Terminals 4 | . 4 . . . Fabricators . | . . . . . Repair Stations . | . . . . . Recycling Units 1 | . 1 . . . Scanalyzers . | . . . . . Garrison Access . | . . . . . Terminal Hacks 2 | . 1 1 . . Record 1 | . 1 . . . Open Door 1 | . . 1 . . Fabricator Hacks . | . . . . . Repair Station Hacks . | . . . . . Recycling Unit Hacks 1 | . 1 . . . Process 1 | . 1 . . . Scanalyzer . | . . . . . Garrison Access Hacks . | . . . . . Unauthorized Hacks . | . . . . . Terminals . | . . . . . Fabricators . | . . . . . Repair Stations . | . . . . . Recycling Units . | . . . . . Scanalyzers . | . . . . . Garrison Access . | . . . . . Data Cores Recovered . | . . . . . Used . | . . . . . Hacking Detections 3 | . 3 . . . Full Trace Events . | . . . . . Feedback Events . | . . . . . Feedback Blocked . | . . . . . Robot Schematics Acquired . | . . . . . Robots Built . | . . . . . Authchips . | . . . . . Time . | . . . . . Total Robot Build Rating . | . . . . . Part Schematics Acquired . | . . . . . Parts Built . | . . . . . Authchips . | . . . . . Time . | . . . . . Total Part Build Rating . | . . . . . Parts Repaired . | . . . . . Time . | . . . . . Parts Recycled . | . . . . . Recycled Matter 139 | . 139 . . . Retrieved Matter . | . . . . . Retrieved Components . | . . . . . Parts Scanalyzed . | . . . . . Part Schematics Acquired . | . . . . . Parts Damaged . | . . . . . Bothacking | -11 -10 -10 -10 -9 ------------ Run | Yrd Mat Min Exi Min Used RIF Installer . | . . . . . Robots Hacked . | . . . . . Non-combat . | . . . . . Combat . | . . . . . Robot Hacks Applied . | . . . . . Relay Couplers Released . | . . . . . Fabnet Peak Effective % . | . . . . . Robots Rewired . | . . . . . Allies Hacked . | . . . . . Hacks Repelled . | . . . . . Allies | -11 -10 -10 -10 -9 -------- Run | Yrd Mat Min Exi Min Total Allies . | . . . . . Largest Group . | . . . . . Highest-Rated Group . | . . . . . Highest-Rated Ally . | . . . . . Total Orders . | . . . . . Ally Attacks . | . . . . . Total Damage . | . . . . . Kills . | . . . . . Allies Corrupted . | . . . . . Allies Melted . | . . . . . Intel | -11 -10 -10 -10 -9 ------- Run | Yrd Mat Min Exi Min Robot Analysis Total . | . . . . . Derelict Logs Recovered 2 | . . 1 . 1 Drone Launches . | . . . . . Drone Recoveries . | . . . . . Exploration | -11 -10 -10 -10 -9 ------------- Run | Yrd Mat Min Exi Min Turns Passed 2441 | 68 946 412 433 582 Spaces Moved 2287 | 55 756 380 522 574 Core 44 | 22 5 . . 17 Treads . | . . . . . Legs 198 | 33 165 . . . Wheels 2045 | . 586 380 522 557 Hover . | . . . . . Flight . | . . . . . Fastest Speed 50 | 50 80 80 80 80 Average Speed 85 | 92 91 81 80 83 Slowest Speed 250 | 120 250 95 80 250 Overloaded Moves . | . . . . . Propulsion Burnouts . | . . . . . Robots Hopped . | . . . . . Cave-ins Triggered . | . . . . . Exploration Rate (%) 70 | 3 91 71 91 98 Regions Visited 4 Branch Regions 3 Pre-discovered Areas 1 | . . . . 1 Known Exits Taken . | . . . . . Unknown Exits Taken 4 | 1 1 1 1 . Scrap Searched 3 | . . 1 . 2 Spaces Dug . | . . . . . Terrain Destroyed 89 | . . 22 . 67 Melee . | . . . . . Projectile . | . . . . . AOE 89 | . . 22 . 67 Terrain Rammed . | . . . . . Walls Destroyed . | . . . . . Machines Disabled . | . . . . . Actions | -11 -10 -10 -10 -9 --------- Run | Yrd Mat Min Exi Min Total 2582 | 72 891 443 539 637 Wait 37 | 2 15 5 . 15 Move 2283 | 54 755 379 521 574 Hop . | . . . . . Pick Up 50 | 10 27 4 5 4 Fast Attach 4 | . 1 2 . 1 Attach 30 | 6 14 2 4 4 Detach 3 | . 1 . 2 . Swap 19 | . 3 8 2 6 Drop 36 | . 12 13 5 6 Fire 120 | . 63 30 . 27 Melee . | . . . . . Ram . | . . . . . Kick . | . . . . . Crush . | . . . . . Escape Stasis . | . . . . . Rewire . | . . . . . Trap . | . . . . . Miscellaneous . | . . . . . Route ------- -11/Scrapyard -10/Materials (discovered 5 exits: [*Mat x2] / *Min x2 / [Sub]) -10/Mines (discovered 3 exits: [*Mat x2] / *Exi) -10/Exiles -9/Mines (discovered 2 exits: [*Mat x2]) History --------- Turn | Location | Event 9 | -11/Scrapyard | Discovered new exit (range 16) 69 | -11/Scrapyard | Entered Materials 310 | -10/Materials | Build established: Mutant 326 | -10/Materials | Discovered new exit (range 12) 455 | -10/Materials | Discovered new exit (range 16) 489 | -10/Materials | Discovered new exit (range 7) 641 | -10/Materials | Discovered new exit (range 16) 694 | -10/Materials | Discovered new exit (range 8) 1015 | -10/Materials | Entered Mines 1016 | -10/Mines | Assembled infested the area 1022 | -10/Mines | Met a Derelict bent on vengeance 1084 | -10/Mines | Found a damaged Exp. Sensor Array with a note attached 1086 | -10/Mines | Found Prototype Device 1120 | -10/Mines | Discovered new exit (range 15) 1266 | -10/Mines | Discovered new exit (range 16) 1294 | -10/Mines | Learned location of 1 exit from Materials 1313 | -10/Mines | Deemed a non-threat by the Exiles lab entrance 1313 | -10/Mines | Discovered new exit (range 5) 1375 | -10/Mines | Found the Drone Emporium 1390 | -10/Mines | Found Prototype Device 1427 | -10/Mines | Entered Exiles 1456 | -10/Exiles | Met 8R-AWN 1472 | -10/Exiles | Met EX-HEX 1507 | -10/Exiles | Met EX-BIN 1527 | -10/Exiles | Aligned with FarCom system 1528 | -10/Exiles | Given EX-Vault access code 1564 | -10/Exiles | Opened EX-Vault 1570 | -10/Exiles | Found Prototype Storage 1573 | -10/Exiles | Found Prototype Device 1575 | -10/Exiles | Identified Superbattery 1576 | -10/Exiles | Identified Exp. Sensor Array 1578 | -10/Exiles | Identified Splice Drone Bay 1579 | -10/Exiles | Identified Cloak of Protection 1584 | -10/Exiles | Found Prototype Device 1585 | -10/Exiles | Identified PSU Rigger 1610 | -10/Exiles | Warned to stay clear of 0b10 Research branches 1638 | -10/Exiles | Met EX-DEC 1685 | -10/Exiles | Visited The Gauntlet 1845 | -10/Exiles | Discovered new exit (range 14) 1860 | -10/Exiles | Stole three prototypes: Superbattery, Cloak of Protection, PSU Rigger 1860 | -10/Exiles | Entered Mines 1958 | -9/Mines | Received a Rocket Launcher from a helpful Derelict 2164 | -9/Mines | Learned 2 Materials zone layouts 2169 | -9/Mines | Discovered new exit (range 8) 2263 | -9/Mines | Learned location of Storage (-7) 2273 | -9/Mines | Discovered new exit (range 5) 2286 | -9/Mines | Build established: Scavenger-Mutant 2320 | -9/Mines | Core integrity fell below 50% 2409 | -9/Mines | Core integrity fell below 20% 2430 | -9/Mines | Lost 4 parts (1p3n) 2442 | -9/Mines | Destroyed by Y-45 Defender with Beam Rifle Last Messages --------------- 02381_ G-34 Mercenary destroyed. 02385_ Lgt. Ion Engine destroyed. 02385_ Wheel destroyed. 02386_ Overheating: Energy bleed (-20). 02387_ Wheel destroyed. 02388_ The unstable cave ceiling collapses. 02389_ Overheating: System interference. 02389_ Particle Gun temporarily disabled. 02389_ Dropped Particle Gun. 02390_ K-01 Serf collects debris. 02391_ The unstable cave ceiling collapses. 02399_ Wheel destroyed. 02402_ System corrupted: Matter fused (-7). 02431_ Lgt. Assault Rifle destroyed. 02436_ Destroyed Lgt. Nuclear Core. 02438_ G-47 Trooper destroyed. 02438_ U-05 Engineer lays Concrete. 02439_ Grenade Launcher destroyed. 02439_ Critical hit (Burn: +37). 02441_ U-05 Engineer builds a Wall. Map ----- +----------------------------------------------------+ | ?## ##???????????????????????????? | | ??# #???????????????????????????? | | ??# #???????????????????????????? | | ??# ##???????????????????????????? | | ??# ###????????????????????????????? | | ??# #??????????????????????????????? | | ??# #??????????????????????????????? | | ??# #??????????????????????????????? | | ??# #??????????????????????????????? | | ??# #??????????????????????????????? | | ?? % #????????????????????????###### | | # ????????????????????##### # | | # = # ???????????????????## | | # =% ???????????????????# ] | | # !=[ ???????????????????# | | ## ??????######???????## | | # # #??????#"!!"##???????#### | | ? # #??????""[!""#??????????## | | ? #u #??##??? #??????????## | | ?## ##?# ### #???????????# | | ??# ## ##++###??????????# | | ??# # #??????????# | | ??# ##?????????### | | ??#!= % #???????????## | | ??# # #????????????### | | ???#=# @ #?????????####### | | ???#[#### #?????##### | | ???# ###### ## ##????## | | ???# #?##Y ######## # | | ???####### #?## =]| # | | ?????????# ### [% ## | | ?????????# ########## #? | | ?????????#### ##???????# #? | | ????????????## ##??????# #? | | ?????????????## ##????## ##? | | ??????????????## #????# ##?? | | ???????????????# ##???# ##?# | | ???????????????## #???## ### | | ????????????????## #????## | | ?????????????????## ##?????## | | ??????????????????# #???????### ## | | ??????????????????# #?????###?######? | | ??????????????????# #????## #??????? | | ??????????????????# #????# #?????? | | ??????????????????# #????# ?????? | | ??????????????????# #####?# ?????? | | ??????????????????# #??# #????? | | ????????????????###### #??# ##?## | | ????????????????# ??# #??# ### | | ????????????????# ### #???# | +----------------------------------------------------+ Best States ------------- Heat Dissipation 25 Energy Generation 10 Energy Capacity 125 Matter Stores 300 Matter Capacity 300 Sight Range 16 Terrain Scan Density 10 Cloak Strength 5 Armor Coverage 150 Core Shielding 20 Evasion (%) 55 Targeting Accuracy 5 Item Schematics ----------------- None Robot Schematics ------------------ None Fabricated ------------ Nothing Alien Tech Used ----------------- None Achievements -------------- None Challenges ------------ None Game ------ Seed SeismicRainbowPower Manual? 0 Play Time 00:32:56 Cumulative 7.6 hours Start 2024.12.08 @ 18:39:42 End 2024.12.08 @ 19:13:41 Sessions 1 Manual Loads 0 Difficulty Rogue Special Mode None Game No. 9 Rogue 9 Adventurer 0 Explorer 0 Win Type - Total 0 Types 0/0/0/0/0/0/0/0/0 Lore% 8 Gallery% 9 Achievement% 12 Wizard Run 0 Options --------- Layout 1 ASCII 0 Keyboard 0 Movement Arrows Keybinds 0 Fullscreen 2 Font 24/Smallcaps Map View 50x35 Zoom Use 0% Tactical HUD 1 Map Filters NONE Filters NONE Steam 1 RUN: 174f4604-312e-4ac6-aa4a-fbad8f736bd8